fUST/lending_fUST_20240413
["ID","MTS","AMOUNT","RATE_DAILY","PERIOD"]
[322436635,1712999440271,-500.0,0.00037582,7]
[322436636,1712999440281,-500.0,0.00037582,7]
[322436637,1712999440290,-500.0,0.00037582,7]
[322436638,1712999440300,-500.0,0.00037582,7]
[322436639,1712999440309,-500.0,0.00037582,7]
[322436640,1712999440318,-260.33821339,0.00037582,7]
[322436641,1712999440328,-500.0,0.00037582,7]
[322436642,1712999440338,-501.91655438,0.00037582,7]
[322436643,1712999440347,-501.56934518,0.00037582,7]
[322436644,1712999440356,-500.0,0.00037582,7]
[322436645,1712999440366,-500.0,0.00037582,7]
[322436646,1712999440375,-173.17724066,0.00037582,7]
[322436648,1712999440384,-500.0,0.00037582,7]
[322436650,1712999440394,-1186.28,0.00037582,7]
[322436651,1712999440403,-500.0,0.00037582,7]
[322436652,1712999440413,-500.0,0.00037582,7]
[322436653,1712999440422,-482.63853284,0.00037582,7]
[322436654,1712999440431,-500.0,0.00037582,7]
[322436655,1712999440440,-500.0,0.00037582,7]
[322436656,1712999440451,-526.44,0.00037582,7]
[322436657,1712999440461,-762.37,0.00037582,7]
[322436658,1712999440470,-500.0,0.00037582,7]
[322436659,1712999440480,-34634.52,0.00037582,7]
[322436661,1712999440489,-500.0,0.00037582,7]
[322436662,1712999440499,-500.0,0.00037582,7]
[322436663,1712999440508,-500.0,0.00037582,7]
[322436664,1712999440518,-1022.16,0.00037582,7]
[322436665,1712999440528,-2686.27,0.00037582,7]
[322436666,1712999440537,-500.0,0.00037582,7]
[322436668,1712999440683,-500.0,0.00037582,7]
[322436669,1712999440693,-500.0,0.00037582,7]
[322436670,1712999440703,-390.57646738,0.00037582,7]
[322436671,1712999440712,-500.0,0.00037582,7]
[322436672,1712999440721,-499.68616725,0.00037582,7]
[322436673,1712999440731,-500.0,0.00037582,7]
[322436674,1712999440741,-500.0,0.00037582,7]
[322436675,1712999440750,-500.0,0.00037582,7]
[322436676,1712999440758,-481.75517932,0.00037582,7]
[322436677,1712999440768,-500.0,0.00037582,7]
[322436678,1712999440777,-500.0,0.00037582,7]
[322436679,1712999440787,-500.0,0.00037582,7]
[322436680,1712999440797,-500.0,0.00037582,7]
[322436681,1712999440807,-2065.57,0.00037582,7]
[322436682,1712999440816,-500.0,0.00037582,7]
[322436683,1712999440825,-507.10844194,0.00037582,7]
[322436684,1712999440836,-500.0,0.00037582,7]
[322436685,1712999440846,-500.0,0.00037582,7]
[322436686,1712999440856,-500.0,0.00037582,7]
[322436687,1712999440865,-214.81493705,0.00037582,7]
[322436688,1712999440875,-7089.22,0.00037582,7]
[322436689,1712999440884,-43714.24916965,0.00037583,5]
[322436690,1712999440894,-500.0,0.00037583,7]
[322436691,1712999440904,-500.0,0.00037583,7]
[322436692,1712999440914,-500.0,0.00037583,7]
[322436693,1712999440923,-500.0,0.00037583,7]
[322436694,1712999440932,-322.12859759,0.00037583,7]
[322436695,1712999440942,-500.0,0.00037583,7]
[322436696,1712999440951,-500.0,0.00037583,7]
[322436697,1712999440961,-500.0,0.00037583,7]
[322436698,1712999440970,-500.0,0.00037583,7]
[322436699,1712999440980,-381.97699144,0.00037583,7]
[322436700,1712999440990,-1415.06,0.00037583,7]
[322436701,1712999440999,-500.0,0.00037583,7]
[322436702,1712999441009,-500.0,0.00037583,7]
[322436703,1712999441018,-503.26166634,0.00037583,7]
[322436704,1712999441028,-500.0,0.00037583,7]
[322436705,1712999441037,-500.0,0.00037583,7]
[322436706,1712999441047,-500.0,0.00037583,7]
[322436707,1712999441057,-500.0,0.00037583,7]
[322436708,1712999441066,-337.67560102,0.00037583,7]
[322436709,1712999441075,-500.0,0.00037583,7]
[322436710,1712999441085,-500.0,0.00037583,7]
[322436711,1712999441094,-502.12859615,0.00037583,7]
[322436712,1712999441104,-500.0,0.00037583,7]
[322436713,1712999441114,-500.0,0.00037583,7]
[322436714,1712999441124,-501.24410365,0.00037583,7]
[322436715,1712999441133,-500.0,0.00037583,7]
[322436716,1712999441143,-502.85893924,0.00037583,7]
[322436717,1712999441153,-500.0,0.00037583,7]
[322436718,1712999441162,-375.0726596,0.00037583,7]
[322436719,1712999441171,-500.0,0.00037583,7]
[322436720,1712999441181,-617.97867479,0.00037583,7]
[322436721,1712999441191,-500.0,0.00037583,7]
[322436722,1712999441201,-500.0,0.00037583,7]
[322436723,1712999441210,-219.02049985,0.00037583,7]
[322436724,1712999441220,-500.0,0.00037583,7]
[322436725,1712999441228,-500.0,0.00037583,7]
[322436726,1712999441237,-500.0,0.00037583,7]
[322436727,1712999441247,-500.0,0.00037583,7]
[322436728,1712999441256,-500.0,0.00037583,7]
[322436729,1712999441266,-500.0,0.00037583,7]
[322436730,1712999441276,-500.0,0.00037583,7]
[322436731,1712999441285,-738.96,0.00037583,7]
[322436732,1712999441294,-500.0,0.00037583,7]
[322436733,1712999441303,-419.90088758,0.00037583,7]
[322436734,1712999441313,-507.69288927,0.00037583,7]
[322436735,1712999441322,-500.0,0.00037583,7]
[322436736,1712999441332,-479.27390222,0.00037583,7]
[322436737,1712999441341,-500.0,0.00037583,7]
[322436738,1712999441351,-500.0,0.00037583,7]
[322436739,1712999441360,-501.62064787,0.00037583,7]
[322436740,1712999441369,-500.0,0.00037583,7]
[322436741,1712999441378,-500.0,0.00037583,7]
[322436742,1712999441388,-509.80590463,0.00037583,7]
[322436743,1712999441397,-500.0,0.00037583,7]
[322436744,1712999441407,-500.0,0.00037583,7]
[322436745,1712999441416,-503.91738435,0.00037583,7]
[322436746,1712999441426,-500.0,0.00037583,7]
[322436747,1712999441436,-500.0,0.00037583,7]
[322436748,1712999441445,-500.0,0.00037583,7]
[322436749,1712999441455,-500.0,0.00037583,7]
[322436750,1712999441464,-500.0,0.00037583,7]
[322436751,1712999441473,-1753.61,0.00037583,7]
[322436752,1712999441482,-500.0,0.00037583,7]
[322436753,1712999441491,-500.0,0.00037583,7]
[322436754,1712999441500,-501.17687522,0.00037583,7]
[322436755,1712999441510,-500.0,0.00037583,7]
[322436756,1712999441519,-248.29776842,0.00037583,7]
[322436757,1712999441529,-500.0,0.00037583,7]
[322436758,1712999441538,-500.0,0.00037583,7]
[322436759,1712999441547,-500.0,0.00037583,7]
[322436760,1712999441557,-500.0,0.00037583,7]
[322436761,1712999441566,-500.0,0.00037584,7]
[322436762,1712999441575,-500.0,0.00037584,7]
[322436763,1712999441589,-500.0,0.00037584,7]
[322436764,1712999441598,-500.41206673,0.00037584,7]
[322436765,1712999441607,-500.0,0.00037584,7]
[322436766,1712999441616,-500.0,0.00037584,7]
[322436767,1712999441625,-500.0,0.00037584,7]
[322436768,1712999441634,-500.0,0.00037584,7]
[322436769,1712999441643,-500.59272829,0.00037584,7]
[322436770,1712999441652,-301.58630501,0.00037584,7]
[322436771,1712999441661,-500.0,0.00037584,7]
[322436772,1712999441670,-500.0,0.00037584,7]
[322436773,1712999441679,-500.0,0.00037584,7]
[322436774,1712999441689,-413.58826694,0.00037584,7]
[322436775,1712999441697,-500.0,0.00037647,7]
[322436776,1712999441707,-394.89314671,0.00037647,7]
[322436777,1712999441716,-155.07909034,0.00037647,2]
[322436778,1712999441725,-1014.05805107,0.00037647,4]
[322436779,1712999441735,-160.0,0.00037647,10]
[322436780,1712999441744,-19325.04614029,0.00037647,2]
[322436781,1712999441753,-87768.61295197,0.00037647,2]
[322436782,1712999441761,-158144.65526241,0.00037647,2]
[322436805,1712999443843,-397.21752999,0.00037,30]
[322436873,1712999446817,-3796.00974001,0.00037,30]
[322436874,1712999446827,-1227.21428899,0.00037647,2]
[322437013,1713000638748,-566.12451662,0.00033975,4]
[322437014,1713000638758,-154.9721438,0.00033981,7]
[322437015,1713000638767,-945.03221158,0.00033996,4]
[322437016,1713000638777,-235.93437582,0.00033998,7]
[322437017,1713000638786,-155.17922348,0.00033998,4]
[322437018,1713000638795,-213.90962097,0.00033998,4]
[322437019,1713000638805,-502.32270366,0.00033998,4]
[322437020,1713000638814,-939.71019604,0.00033998,4]
[322437021,1713000638823,-155.49698991,0.00033998,4]
[322437022,1713000638834,-155.59242425,0.00033998,4]
[322437023,1713000638844,-284.26068043,0.00033998,4]
[322437024,1713000638855,-155.33200248,0.00033998,4]
[322437025,1713000638864,-264.68860952,0.00033998,4]
[322437026,1713000638874,-172.65631549,0.00033998,4]
[322437027,1713000638885,-999.84320572,0.00033998,4]
[322437028,1713000638895,-266.51962622,0.00033999,4]
[322437029,1713000638906,-48551.70383343,0.00034,3]
[322437030,1713000638917,-154.9721438,0.00034078,7]
[322437031,1713000638927,-597.74798778,0.00035,2]
[322437032,1713000638938,-157.31099709,0.00035528,7]
[322437033,1713000638947,-511.94903463,0.00035547,2]
[322437034,1713000638956,-373.66,0.00035616,2]
[322437035,1713000638965,-500.0,0.00035616,7]
[322437036,1713000638975,-500.0,0.00035616,7]
[322437037,1713000638984,-500.0,0.00035616,7]
[322437038,1713000638993,-1246.42,0.00035616,7]
[322437039,1713000639003,-500.0,0.00035616,7]
[322437040,1713000639012,-500.0,0.00035616,7]
[322437041,1713000639022,-154.9721438,0.00036709,7]
[322437042,1713000639031,-409.47260909,0.00036894,2]
[322437043,1713000639041,-727.94970687,0.00037459,9]
[322437044,1713000639050,-500.0,0.00037534,7]
[322437045,1713000639059,-1246.42,0.00037534,7]
[322437046,1713000639069,-500.0,0.00037534,7]
[322437047,1713000639078,-500.0,0.00037534,7]
[322437048,1713000639088,-589.45197431,0.00037577,7]
[322437049,1713000639097,-2187.50044305,0.00037578,2]
[322437050,1713000639109,-156.5699296,0.00037578,4]
[322437051,1713000639118,-259.56728027,0.00037578,2]
[322437052,1713000639262,-327.88532073,0.00037578,4]
[322437053,1713000639272,-512.74703097,0.00037578,4]
[322437054,1713000639281,-155.14148889,0.00037578,4]
[322437055,1713000639290,-190.28618432,0.00037578,4]
[322437056,1713000639300,-621.13182712,0.00037578,4]
[322437057,1713000639309,-301.81926402,0.00037578,4]
[322437058,1713000639318,-250.30199299,0.00037578,4]
[322437059,1713000639327,-279.48777514,0.00037578,4]
[322437060,1713000639336,-369.05056666,0.00037578,4]
[322437061,1713000639345,-400.0,0.00037578,2]
[322437062,1713000639355,-1169.87036919,0.00037578,4]
[322437063,1713000639365,-259.61843384,0.00037578,4]
[322437064,1713000639374,-231.95804009,0.00037578,4]
[322437065,1713000639383,-155.55304906,0.00037578,4]
[322437066,1713000639392,-284.64613631,0.00037578,4]
[322437067,1713000639401,-225.5768185,0.00037578,4]
[322437068,1713000639410,-155.24218678,0.00037578,4]
[322437069,1713000639419,-465.17165765,0.00037578,4]
[322437070,1713000639428,-207.03347943,0.00037578,4]
[322437071,1713000639437,-3914.91151105,0.00037578,2]
[322437072,1713000639451,-155.23479818,0.00037578,4]
[322437075,1713000639460,-1210.76347468,0.00037578,4]
[322437077,1713000639470,-605.65032515,0.00037579,4]
[322437080,1713000639479,-2796.89,0.00037579,7]
[322437083,1713000639489,-500.0,0.00037579,15]
[322437085,1713000639498,-3232.16,0.00037579,7]
[322437087,1713000639507,-500.0,0.00037579,7]
[322437089,1713000639517,-1070.51,0.00037579,7]
[322437091,1713000639528,-1015.16,0.00037579,7]
[322437093,1713000639537,-500.0,0.00037579,7]
[322437095,1713000639546,-897.77,0.00037579,7]
[322437097,1713000639554,-500.0,0.00037579,7]
[322437099,1713000639563,-512.13,0.00037579,7]
[322437100,1713000639572,-1191.86,0.00037579,7]
[322437102,1713000639580,-500.0,0.00037579,7]
[322437104,1713000639589,-500.0,0.00037579,7]
[322437106,1713000639598,-4113.97,0.00037579,7]
[322437108,1713000639609,-1515.53,0.00037579,7]
[322437110,1713000639618,-1549.63,0.00037579,7]
[322437112,1713000639627,-60325.66385412,0.0003758,5]
[322437114,1713000639636,-500.0,0.0003758,7]
[322437116,1713000639646,-500.0,0.0003758,7]
[322437118,1713000639655,-505.23593101,0.0003758,7]
[322437120,1713000639664,-503.02454621,0.0003758,7]
[322437122,1713000639673,-670.34,0.0003758,7]
[322437124,1713000639683,-500.0,0.0003758,7]
[322437125,1713000639692,-503.65934584,0.0003758,7]
[322437126,1713000639702,-500.0,0.0003758,7]
[322437127,1713000639711,-300.0,0.0003758,7]
[322437128,1713000639720,-500.0,0.0003758,7]
[322437129,1713000639730,-500.0,0.0003758,7]
[322437130,1713000639739,-179.25745863,0.0003758,7]
[322437131,1713000639750,-517.7182287,0.0003758,7]
[322437132,1713000639759,-500.0,0.0003758,7]
[322437133,1713000639768,-500.0,0.0003758,7]
[322437134,1713000639777,-500.0,0.0003758,7]
[322437135,1713000639786,-293.0,0.0003758,7]
[322437136,1713000639796,-500.0,0.0003758,7]
[322437137,1713000639806,-500.0,0.0003758,7]
[322437138,1713000639815,-500.0,0.0003758,7]
[322437139,1713000639825,-500.0,0.0003758,7]
[322437140,1713000639835,-502.85541641,0.0003758,14]
[322437141,1713000639844,-500.0,0.0003758,7]
[322437142,1713000639854,-500.0,0.0003758,7]
[322437143,1713000639863,-500.0,0.0003758,7]
[322437144,1713000639872,-512.89323581,0.0003758,7]
[322437145,1713000639882,-841.38,0.0003758,7]
[322437146,1713000639892,-516.88435255,0.0003758,7]
[322437147,1713000639901,-500.0,0.0003758,7]
[322437148,1713000639911,-500.0,0.0003758,7]
[322437149,1713000639920,-500.0,0.0003758,7]
[322437150,1713000639929,-500.0,0.0003758,7]
[322437151,1713000639938,-500.0,0.0003758,7]
[322437152,1713000639967,-500.0,0.0003758,7]
[322437153,1713000639977,-394.89314671,0.0003758,7]
[322437154,1713000639986,-500.0,0.0003758,7]
[322437155,1713000639995,-500.0,0.0003758,7]
[322437156,1713000640004,-305.78899216,0.0003758,7]
[322437157,1713000640013,-500.0,0.0003758,7]
[322437158,1713000640023,-507.82013399,0.0003758,7]
[322437159,1713000640032,-234.09076819,0.0003758,7]
[322437160,1713000640041,-500.0,0.0003758,7]
[322437161,1713000640051,-500.0,0.0003758,7]
[322437162,1713000640060,-500.0,0.0003758,7]
[322437163,1713000640069,-500.0,0.0003758,7]
[322437164,1713000640078,-529.60230048,0.0003758,7]
[322437165,1713000640088,-500.0,0.0003758,7]
[322437166,1713000640097,-521.08070212,0.0003758,7]
[322437167,1713000640108,-500.0,0.0003758,7]
[322437168,1713000640117,-500.0,0.0003758,7]
[322437169,1713000640127,-500.0,0.0003758,7]
[322437171,1713000640136,-500.0,0.0003758,7]
[322437172,1713000640147,-500.0,0.0003758,7]
[322437173,1713000640155,-500.0,0.0003758,7]
[322437174,1713000640165,-500.0,0.0003758,7]
[322437175,1713000640174,-505.82341334,0.0003758,7]
[322437176,1713000640184,-650.58,0.0003758,7]
[322437178,1713000640194,-1025.7,0.0003758,7]
[322437180,1713000640204,-500.0,0.0003758,7]
[322437181,1713000640213,-1492.16,0.0003758,7]
[322437182,1713000640223,-500.0,0.0003758,7]
[322437183,1713000640232,-500.0,0.0003758,7]
[322437184,1713000640241,-523.06514236,0.0003758,7]
[322437186,1713000640251,-501.63398717,0.0003758,7]
[322437187,1713000640260,-500.0,0.0003758,7]
[322437188,1713000640270,-500.0,0.0003758,7]
[322437189,1713000640279,-500.0,0.0003758,7]
[322437190,1713000640289,-500.0,0.0003758,7]
[322437191,1713000640298,-500.0,0.0003758,7]
[322437193,1713000640307,-501.68703059,0.0003758,7]
[322437194,1713000640317,-500.0,0.0003758,7]
[322437195,1713000640326,-500.0,0.0003758,7]
[322437196,1713000640335,-500.0,0.0003758,7]
[322437197,1713000640344,-500.0,0.0003758,7]
[322437198,1713000640354,-502.30594944,0.0003758,7]
[322437199,1713000640363,-502.8943787,0.0003758,7]
[322437200,1713000640372,-778.27,0.0003758,7]
[322437201,1713000640381,-500.0,0.0003758,7]
[322437202,1713000640390,-500.0,0.0003758,7]
[322437203,1713000640399,-212.7434145,0.0003758,7]
[322437204,1713000640409,-500.0,0.0003758,7]
[322437206,1713000640418,-500.0,0.0003758,7]
[322437208,1713000640427,-500.0,0.0003758,7]
[322437210,1713000640436,-1258.97,0.0003758,7]
[322437212,1713000640445,-309.73189997,0.0003758,7]
[322437214,1713000640458,-501.05186467,0.0003758,7]
[322437216,1713000640467,-500.0,0.0003758,7]
[322437218,1713000640476,-500.0,0.0003758,7]
[322437219,1713000640485,-7417.99,0.0003758,7]
[322437221,1713000640494,-500.0,0.0003758,7]
[322437222,1713000640503,-500.0,0.0003758,7]
[322437223,1713000640512,-501.96761471,0.0003758,7]
[322437224,1713000640521,-500.0,0.0003758,7]
[322437225,1713000640531,-500.0,0.0003758,7]
[322437226,1713000640542,-507.36235383,0.0003758,7]
[322437227,1713000640551,-500.0,0.0003758,7]
[322437228,1713000640561,-500.0,0.0003758,7]
[322437229,1713000640571,-838.85,0.0003758,7]
[322437230,1713000640580,-500.0,0.0003758,7]
[322437231,1713000640589,-500.0,0.0003758,7]
[322437232,1713000640599,-1477.96,0.0003758,7]
[322437233,1713000640609,-500.0,0.0003758,7]
[322437234,1713000640620,-539.75695291,0.0003758,7]
[322437235,1713000640630,-896.15,0.0003758,7]
[322437236,1713000640639,-500.0,0.0003758,7]
[322437237,1713000640648,-508.62675461,0.0003758,7]
[322437238,1713000640658,-500.0,0.0003758,7]
[322437239,1713000640667,-500.0,0.0003758,7]
[322437240,1713000640677,-500.0,0.0003758,7]
[322437242,1713000640686,-500.0,0.0003758,7]
[322437243,1713000640695,-415.38233686,0.0003758,7]
[322437244,1713000640704,-500.0,0.0003758,7]
[322437246,1713000640714,-500.0,0.0003758,7]
[322437248,1713000640723,-500.0,0.0003758,7]
[322437250,1713000640733,-500.0,0.0003758,7]
[322437252,1713000640743,-500.0,0.0003758,7]
[322437254,1713000640752,-500.0,0.0003758,7]
[322437256,1713000640762,-500.0,0.0003758,7]
[322437258,1713000640772,-500.59608291,0.0003758,7]
[322437259,1713000640782,-500.0,0.0003758,7]
[322437260,1713000640792,-500.0,0.0003758,7]
[322437261,1713000640801,-500.0,0.0003758,7]
[322437262,1713000640811,-500.0,0.0003758,7]
[322437263,1713000640820,-500.0,0.0003758,7]
[322437264,1713000640829,-500.0,0.0003758,7]
[322437265,1713000640839,-500.0,0.0003758,7]
[322437266,1713000640849,-500.0,0.0003758,7]
[322437268,1713000640859,-500.0,0.0003758,7]
[322437270,1713000640868,-2673.64,0.0003758,7]
[322437271,1713000640878,-500.0,0.0003758,7]
[322437272,1713000640887,-913.65,0.0003758,7]
[322437273,1713000640897,-500.0,0.0003758,7]
[322437274,1713000640907,-500.0,0.0003758,7]
[322437275,1713000640917,-500.0,0.0003758,7]
[322437276,1713000640927,-502.59759276,0.0003758,7]
[322437277,1713000640936,-500.0,0.0003758,7]
[322437278,1713000640945,-1188.13,0.0003758,7]
[322437279,1713000640953,-3063.09,0.0003758,7]
[322437280,1713000640964,-500.0,0.0003758,7]
[322437281,1713000640975,-500.0,0.0003758,7]
[322437282,1713000640984,-500.0,0.0003758,7]
[322437283,1713000640994,-500.0,0.0003758,7]
[322437284,1713000641003,-500.0,0.0003758,7]
[322437285,1713000641012,-2418.0,0.0003758,7]
[322437286,1713000641022,-500.0,0.0003758,7]
[322437287,1713000641032,-500.0,0.0003758,7]
[322437288,1713000641041,-1099.48,0.0003758,7]
[322437289,1713000641051,-500.0,0.0003758,7]
[322437290,1713000641061,-500.0,0.0003758,7]
[322437291,1713000641074,-500.0,0.0003758,7]
[322437292,1713000641083,-500.0,0.0003758,7]
[322437293,1713000641092,-1649.42,0.0003758,7]
[322437294,1713000641103,-537.97,0.0003758,7]
[322437295,1713000641113,-500.0,0.0003758,7]
[322437296,1713000641123,-500.0,0.0003758,7]
[322437297,1713000641133,-500.0,0.0003758,7]
[322437298,1713000641142,-500.0,0.0003758,7]
[322437299,1713000641152,-500.0,0.0003758,7]
[322437300,1713000641161,-500.0,0.0003758,7]
[322437301,1713000641171,-500.0,0.0003758,7]
[322437302,1713000641181,-285.65683808,0.0003758,7]
[322437303,1713000641190,-500.0,0.0003758,7]
[322437304,1713000641201,-509.06937198,0.0003758,7]
[322437305,1713000641210,-500.0,0.0003758,7]
[322437306,1713000641220,-500.0,0.0003758,7]
[322437307,1713000641230,-500.0,0.0003758,7]
[322437308,1713000641239,-505.48420092,0.0003758,7]
[322437309,1713000641249,-500.0,0.0003758,7]
[322437310,1713000641258,-1237.36,0.0003758,7]
[322437311,1713000641267,-500.0,0.0003758,7]
[322437312,1713000641277,-500.0,0.0003758,7]
[322437313,1713000641286,-500.0,0.0003758,7]
[322437314,1713000641295,-793.65,0.0003758,7]
[322437315,1713000641305,-500.0,0.0003758,7]
[322437316,1713000641314,-434.21428515,0.0003758,7]
[322437317,1713000641323,-569.95,0.0003758,7]
[322437318,1713000641333,-500.0,0.0003758,7]
[322437319,1713000641342,-500.70531605,0.0003758,7]
[322437320,1713000641351,-500.0,0.0003758,7]
[322437321,1713000641362,-500.0,0.0003758,7]
[322437322,1713000641371,-500.0,0.0003758,7]
[322437323,1713000641380,-500.0,0.0003758,7]
[322437324,1713000641390,-239.44677944,0.0003758,7]
[322437325,1713000641399,-500.0,0.0003758,7]
[322437326,1713000641408,-500.0,0.0003758,7]
[322437327,1713000641418,-501.47356182,0.0003758,7]
[322437328,1713000641427,-513.28596305,0.0003758,7]
[322437329,1713000641436,-645.78943678,0.0003758,7]
[322437330,1713000641446,-585.42150405,0.0003758,7]
[322437331,1713000641458,-500.0,0.0003758,7]
[322437332,1713000641467,-500.0,0.0003758,7]
[322437333,1713000641477,-500.0,0.0003758,7]
[322437334,1713000641486,-500.0,0.0003758,7]
[322437335,1713000641497,-36226.99,0.0003758,7]
[322437336,1713000641506,-500.0,0.0003758,7]
[322437337,1713000641517,-500.0,0.0003758,7]
[322437338,1713000641529,-500.0,0.0003758,7]
[322437339,1713000641539,-500.0,0.0003758,7]
[322437340,1713000641548,-503.49918991,0.0003758,7]
[322437341,1713000641558,-500.0,0.0003758,7]
[322437342,1713000641567,-500.0,0.0003758,7]
[322437343,1713000641576,-500.81964444,0.0003758,7]
[322437344,1713000641585,-510.72468897,0.0003758,7]
[322437345,1713000641595,-501.61728014,0.0003758,7]
[322437346,1713000641606,-500.0,0.0003758,7]
[322437347,1713000641616,-2811.5,0.0003758,7]
[322437348,1713000641625,-500.0,0.0003758,7]
[322437349,1713000641635,-500.0,0.0003758,7]
[322437350,1713000641644,-500.0,0.0003758,7]
[322437351,1713000641653,-500.0,0.0003758,7]
[322437352,1713000641662,-500.0,0.0003758,7]
[322437353,1713000641671,-500.0,0.0003758,7]
[322437354,1713000641680,-500.0,0.0003758,7]
[322437355,1713000641690,-500.0,0.0003758,7]
[322437356,1713000641699,-500.0,0.0003758,7]
[322437357,1713000641708,-500.0,0.0003758,7]
[322437358,1713000641717,-500.0,0.0003758,7]
[322437359,1713000641726,-500.0,0.0003758,7]
[322437360,1713000641735,-617.84541865,0.0003758,7]
[322437361,1713000641744,-810.09,0.0003758,7]
[322437362,1713000641753,-495.34182563,0.0003758,7]
[322437363,1713000641762,-500.0,0.0003758,7]
[322437364,1713000641771,-155.14101577,0.0003758,7]
[322437365,1713000641780,-231.50765205,0.0003758,7]
[322437366,1713000641790,-500.0,0.0003758,7]
[322437367,1713000641799,-500.0,0.0003758,7]
[322437368,1713000641808,-502.32186539,0.0003758,7]
[322437369,1713000641817,-500.0,0.0003758,7]
[322437370,1713000641826,-500.0,0.0003758,7]
[322437371,1713000641835,-513.20767902,0.0003758,7]
[322437372,1713000641844,-502.37660325,0.0003758,7]
[322437373,1713000641853,-2161.74,0.0003758,7]
[322437374,1713000641865,-500.0,0.0003758,7]
[322437375,1713000641874,-233.69010313,0.00037581,4]
[322437376,1713000641883,-500.0,0.00037581,7]
[322437377,1713000641891,-2592.11,0.00037581,7]
[322437378,1713000641900,-898.22,0.00037581,7]
[322437379,1713000641909,-500.0,0.00037581,7]
[322437380,1713000641918,-500.0,0.00037581,7]
[322437381,1713000641927,-343.83564179,0.00037581,7]
[322437382,1713000641936,-500.0,0.00037581,7]
[322437383,1713000641945,-500.0,0.00037581,7]
[322437384,1713000641955,-500.0,0.00037581,7]
[322437385,1713000641964,-4358.32,0.00037581,7]
[322437386,1713000641973,-500.0,0.00037581,7]
[322437387,1713000641983,-500.0,0.00037581,7]
[322437388,1713000641992,-500.0,0.00037581,7]
[322437389,1713000642001,-500.0,0.00037581,7]
[322437390,1713000642010,-653.11,0.00037581,7]
[322437391,1713000642020,-500.0,0.00037581,7]
[322437392,1713000642028,-500.0,0.00037581,7]
[322437393,1713000642037,-1040.56,0.00037581,7]
[322437394,1713000642046,-500.0,0.00037581,7]
[322437395,1713000642060,-500.0,0.00037581,7]
[322437396,1713000642081,-500.0,0.00037581,7]
[322437397,1713000642103,-500.0,0.00037581,7]
[322437398,1713000642124,-500.0,0.00037581,7]
[322437399,1713000642146,-500.0,0.00037581,7]
[322437400,1713000642168,-500.33287522,0.00037581,7]
[322437401,1713000642189,-500.0,0.00037581,7]
[322437402,1713000642211,-501.09961894,0.00037581,2]
[322437403,1713000642233,-500.0,0.00037581,7]
[322437404,1713000642254,-500.0,0.00037581,7]
[322437405,1713000642264,-12159.52,0.00037581,7]
[322437406,1713000642273,-500.0,0.00037581,7]
[322437407,1713000642369,-500.0,0.00037581,7]
[322437408,1713000642390,-500.0,0.00037581,7]
[322437409,1713000642400,-500.0,0.00037581,7]
[322437410,1713000642410,-500.0,0.00037581,7]
[322437411,1713000642419,-500.0,0.00037582,7]
[322437412,1713000642428,-503.27185561,0.00037582,7]
[322437413,1713000642437,-275.83421792,0.00037582,7]
[322437414,1713000642450,-500.0,0.00037582,7]
[322437415,1713000642462,-500.0,0.00037582,7]